Cogmind - Beta 10.2 @@@ ROGUE MODE // 2021.04.01 @ 20:17:24 Player: winny Result: Destroyed by as-33473 with Assembled Maul Performance ------------- Evolutions (1) 500 Regions Visited (3) 600 Robots Destroyed (12) 60 Value Destroyed (276) 276 Prototype IDs (0) 0 Alien Tech Used (0) 0 Bonus (0) 0 TOTAL SCORE: 1436 Bonus ------- None Cogmind --------- Core Integrity 0/400 Matter 232/300 Energy 59/100 System Corruption 16% Temperature Cool (0) Movement Treading (160) Location -9/Mines Parts ------- > --- POWER (1) -------- (None) > --- PROPULSION (3) --- Light Treads > --- UTILITY (3) ------ Small Storage Unit Structural Scanner Armor Integrity Analyzer > --- WEAPON (2) ------- Heavy Assault Rifle Mining Laser > --- INVENTORY (6) ---- Weight Redist. System Peak State ------------ > --- POWER ------------ Ion Engine > --- PROPULSION ------- Light Treads Armored Wheel Improved Hover Unit > --- UTILITY ---------- Small Storage Unit Visual Processing Unit Salvage Targeting Computer > --- WEAPON ----------- Heavy Assault Rifle Heavy Assault Rifle > --- INVENTORY -------- Weight Redist. System Structural Scanner [Rating: 15] Favorites ----------- Power Ion Engine Engine Ion Engine Propulsion Aluminum Leg Treads Light Treads Leg Aluminum Leg Wheel Armored Wheel Hover Unit Improved Hover Unit Utility Small Storage Unit Device Structural Scanner Storage Small Storage Unit Processor Visual Processing Unit Weapon EM Pulse Gun Energy Gun EM Pulse Gun Energy Cannon Particle Cannon Ballistic Gun Heavy Assault Rifle Special Weapon Mining Laser Build | -11 -10 -9 -9 ------- Run | Scr Mat Mat Min Slots Evolved 2 | . . 2 . Power . | . . . . Propulsion 1 | . . 1 . Utility 1 | . . 1 . Weapon . | . . . . Parts Attached 19 | 1 . 16 2 Power 2 | . . 2 . Engine 2 | . . 2 . Core . | . . . . Reactor . | . . . . Propulsion 7 | . . 7 . Treads 2 | . . 2 . Leg . | . . . . Wheel 3 | . . 3 . Hover 2 | . . 2 . Flight . | . . . . Utility 4 | . . 3 1 Device 1 | . . . 1 Storage . | . . . . Processor 3 | . . 3 . Hackware . | . . . . Protection . | . . . . Artifact . | . . . . Weapon 6 | 1 . 4 1 Energy Gun 1 | 1 . . . Energy Cannon 1 | . . 1 . Ballistic Gun 3 | . . 3 . Ballistic Cannon . | . . . . Launcher . | . . . . Special Weapon 1 | . . . 1 Impact Weapon . | . . . . Slashing Weapon . | . . . . Piercing Weapon . | . . . . Special Melee Weapon . | . . . . Unidentified Prototypes . | . . . . Parts Lost 16 | . . 16 . Power 3 | . . 3 . Propulsion 6 | . . 6 . Utility 2 | . . 2 . Weapon 5 | . . 5 . Highest Loss Streak 9 | . . 9 . Average Slot Usage (%) 69 | . 85 64 76 Engine 6 | . 14 6 . Treads 4 | . . 4 11 Leg 10 | . 28 8 . Wheel 8 | . . 9 10 Hover 1 | . . 2 . Device 1 | . . . 11 Storage 11 | . 14 11 11 Processor 8 | . . 9 11 Energy Gun 8 | . 28 5 . Ballistic Gun 7 | . . 7 11 Special Weapon 1 | . . . 11 Naked Turns . | . . . . Heaviest Build 15 | 13 13 15 9 Greatest Support 26 | 20 20 26 20 Greatest Overweight (x) 3 | . . 3 2 Average Overweight (x) . | . . . . Largest Inventory Capacity 6 | 6 6 6 6 Average Capacity 6 | 6 6 6 6 Most Carried 6 | 6 6 4 2 Average Carried 2 | 4 4 2 1 Final Capacity 6 | 6 6 6 6 Final Carried 4 | 4 4 3 1 Class Distribution -------------------- 100% | Mutant Dominant Class ---------------- Mutant | -10/Materials Mutant | -9/Materials Mutant | -9/Mines Resources | -11 -10 -9 -9 ----------- Run | Scr Mat Mat Min Matter Collected 441 | 200 10 231 . Remotely . | . . . . Salvage Created 407 | . 52 355 . Parts 24 | . 8 16 . Haulers Intercepted 1 | . . 1 . Recyclers Shooed . | . . . . Parts Field Recycled . | . . . . Retrieved Matter . | . . . . Parts Self-Destructed . | . . . . Prevented . | . . . . Kills | -11 -10 -9 -9 ------- Run | Scr Mat Mat Min Combat Hostiles Destroyed 11 | . 3 8 . Guns 10 | . 3 7 . AOE 1 | . . 1 . Classes Destroyed 5 | . 1 4 . Hauler 1 | . . 1 . Swarmer 6 | . 3 3 . Grunt 2 | . . 2 . Brawler 1 | . . 1 . Sentry 2 | . . 2 . Best Kill Streak 3 | . 3 3 . Combat Bots Only 3 | . 3 3 . Max Kills in Single Turn 2 | . 1 2 . Gunslinging 1 | . . 1 . Exploded 1 | . . 1 . Melee . | . . . . Uniques/NPCs Destroyed . | . . . . Combat | -11 -10 -9 -9 -------- Run | Scr Mat Mat Min Damage Taken 1667 | . 114 1463 90 Core 442 | . 39 375 28 Absorbed by Shields . | . . . . Core Remaining (%) 92 | 100 84 . . Volleys Fired 66 | . 8 56 2 Largest 2 | . 2 2 2 Hottest 123 | . 80 80 123 Shots Fired 90 | . 16 70 4 Gun 88 | . 16 70 2 Cannon . | . . . . Launcher . | . . . . Special 2 | . . . 2 Kinetic 61 | . . 59 2 Thermal 2 | . . . 2 Explosive . | . . . . Electromagnetic 27 | . 16 11 . Robot Hit Streak 9 | . 3 9 1 Robot Miss Streak 3 | . 2 3 1 Penetration Max . | . . . . Secondary Targets 2 | . 1 1 . Max Gunslinging Chain 1 | . 1 1 . Shots Hit Robots 57 | . 8 48 1 Core Hits 16 | . 3 13 . Critical Hits 1 | . . 1 . Critical Kills . | . . . . Critical Parts Destroyed 1 | . . 1 . Melee Attacks . | . . . . Impact . | . . . . Slashing . | . . . . Piercing . | . . . . Sneak Attacks . | . . . . Combat Hostiles . | . . . . Follow-up Attacks . | . . . . Damage Inflicted 843 | . 106 723 14 Guns 791 | . 106 671 14 Cannons . | . . . . Explosions 52 | . . 52 . Melee . | . . . . Ramming . | . . . . Kinetic 630 | . . 616 14 Thermal . | . . . . Explosive 52 | . . 52 . Electromagnetic 161 | . 106 55 . Impact . | . . . . Slashing . | . . . . Piercing . | . . . . Highest Corruption 16 | . 1 16 16 Average Corruption 13 | . 1 15 16 Corruption Purged . | . . . . Effects 16 | . 1 9 6 Message Errors 2 | . . 1 1 Matter Fused 2 | . . . 2 Energy Discharges 1 | . . 1 . Parts Rejected 2 | . . 1 1 Data Loss (minor) 1 | . 1 . . Data Loss (major) 2 | . . 1 1 Alerts 1 | . . 1 . Misdirections 4 | . . 3 1 Weapon Failures 1 | . . 1 . Overload Shots . | . . . . Overflow Damage 4 | . . 4 . Projectiles . | . . . . Explosions 4 | . . 4 . Melee . | . . . . Knockbacks . | . . . . Impact . | . . . . Kinetic . | . . . . Secondary . | . . . . Self-Inflicted Damage . | . . . . Shots . | . . . . Rammed . | . . . . Targets Rammed . | . . . . Kicked . | . . . . Crushed . | . . . . Highest Temperature 126 | . 126 27 . Average Temperature 40 | . 59 10 . Received Heat Transfer 573 | . . 573 . Siege Activations . | . . . . Robots Corrupted . | . . . . Combat Hostiles . | . . . . Parts Fried . | . . . . Impact Corruptions . | . . . . Robots Melted . | . . . . Combat Hostiles . | . . . . Parts Melted . | . . . . Heat Transferred . | . . . . Parts Sabotaged . | . . . . Parts Stolen . | . . . . Parts Stripped . | . . . . Power Chain Reactions . | . . . . Missiles Intercepted . | . . . . Alert | -11 -10 -9 -9 ------- Run | Scr Mat Mat Min Peak Influence 177 | . 75 177 69 Initial 69 | . . 31 69 Average 97 | . 58 110 69 Maximum Alert Level . | . . . . Low Security (%) 100 | 100 100 100 100 Level 1 . | . . . . Level 2 . | . . . . Level 3 . | . . . . Level 4 . | . . . . Level 5 . | . . . . High Security . | . . . . Max Security . | . . . . Squads Dispatched 1 | . . 1 . Investigation . | . . . . Extermination . | . . . . Reinforcement 1 | . . 1 . Assault . | . . . . Garrison . | . . . . Intercept . | . . . . Construction Impeded . | . . . . Haulers Reinforced . | . . . . Stealth | -11 -10 -9 -9 --------- Run | Scr Mat Mat Min Distress Signals 1 | . . 1 . Communications Jammed . | . . . . Distress Signals . | . . . . Times Spotted 44 | . 7 24 13 Peak Tracking Total 19 | . 3 11 19 Tactical Retreats 4 | . . 3 1 Traps | -11 -10 -9 -9 ------- Run | Scr Mat Mat Min Traps Triggered 1 | . 1 . . Indirectly . | . . . . Trap Hack Attempts . | . . . . Triggered . | . . . . Disarmed . | . . . . Reprogrammed . | . . . . Reused . | . . . . Traps Extracted . | . . . . Installed . | . . . . Triggered . | . . . . Machines | -11 -10 -9 -9 ---------- Run | Scr Mat Mat Min Machines Disabled 2 | . . 2 . Max in Single Turn 1 | . . 1 . Machines Sabotaged . | . . . . Garrisons Compromised . | . . . . Overloaded Fab Kills . | . . . . Fab Network Shutdowns . | . . . . Hacking | -11 -10 -9 -9 --------- Run | Scr Mat Mat Min Machines Accessed 1 | . 1 . . Terminals 1 | . 1 . . Fabricators . | . . . . Repair Stations . | . . . . Recycling Units . | . . . . Scanalyzers . | . . . . Garrison Access . | . . . . Total Hacks 2 | . 2 . . Successful 1 | . 1 . . Failed 1 | . 1 . . Catastrophic . | . . . . Database Lockouts . | . . . . Manual . | . . . . Terminals 2 | . 2 . . Fabricators . | . . . . Repair Stations . | . . . . Recycling Units . | . . . . Scanalyzers . | . . . . Garrison Access . | . . . . Terminal Hacks 1 | . 1 . . Hauler Manifests 1 | . 1 . . Fabricator Hacks . | . . . . Repair Station Hacks . | . . . . Recycling Unit Hacks . | . . . . Scanalyzer . | . . . . Garrison Access Hacks . | . . . . Unauthorized Hacks . | . . . . Terminals . | . . . . Fabricators . | . . . . Repair Stations . | . . . . Recycling Units . | . . . . Scanalyzers . | . . . . Garrison Access . | . . . . Data Cores Recovered . | . . . . Used . | . . . . Hacking Detections 1 | . 1 . . Full Trace Events . | . . . . Feedback Events . | . . . . Feedback Blocked . | . . . . Robot Schematics Acquired . | . . . . Robots Built . | . . . . Matter . | . . . . Time . | . . . . Total Robot Build Rating . | . . . . Part Schematics Acquired . | . . . . Parts Built . | . . . . Matter . | . . . . Time . | . . . . Total Part Build Rating . | . . . . Parts Repaired . | . . . . Time . | . . . . Parts Recycled . | . . . . Recycled Matter . | . . . . Retrieved Matter . | . . . . Retrieved Components . | . . . . Parts Scanalyzed . | . . . . Part Schematics Acquired . | . . . . Parts Damaged . | . . . . Bothacking | -11 -10 -9 -9 ------------ Run | Scr Mat Mat Min Used RIF Installer . | . . . . Robots Hacked . | . . . . Non-combat . | . . . . Combat . | . . . . Robot Hacks Applied . | . . . . Relay Couplers Released . | . . . . Robots Rewired . | . . . . Allies Hacked . | . . . . Hacks Repelled . | . . . . Allies | -11 -10 -9 -9 -------- Run | Scr Mat Mat Min Total Allies . | . . . . Largest Group . | . . . . Highest-Rated Group . | . . . . Highest-Rated Ally . | . . . . Total Orders . | . . . . Ally Attacks . | . . . . Total Damage . | . . . . Kills . | . . . . Allies Corrupted . | . . . . Allies Melted . | . . . . Intel | -11 -10 -9 -9 ------- Run | Scr Mat Mat Min Robot Analysis Total . | . . . . Derelict Logs Recovered . | . . . . Drone Launches . | . . . . Drone Recoveries . | . . . . Exploration | -11 -10 -9 -9 ------------- Run | Scr Mat Mat Min Turns Passed 983 | 15 137 718 113 Spaces Moved 696 | 10 92 480 114 Core 38 | . . 35 3 Treads 101 | . . 100 1 Legs 294 | 10 92 192 . Wheels 193 | . . 83 110 Hover 70 | . . 70 . Flight . | . . . . Fastest Speed 60 | 120 120 60 90 Average Speed 112 | 120 120 115 92 Slowest Speed 200 | 120 120 200 160 Overloaded Moves . | . . . . Propulsion Burnouts . | . . . . Robots Hopped . | . . . . Cave-ins Triggered . | . . . . Exploration Rate (%) 26 | 2 27 42 35 Regions Visited 3 Branch Regions 1 Pre-discovered Areas . | . . . . Known Exits Taken . | . . . . Unknown Exits Taken 3 | 1 1 1 . Scrap Searched . | . . . . Spaces Dug 1 | . . . 1 Terrain Destroyed 39 | . . 37 2 Melee . | . . . . Projectile 2 | . . . 2 AOE 37 | . . 37 . Terrain Rammed . | . . . . Walls Destroyed . | . . . . Machines Disabled . | . . . . Actions | -11 -10 -9 -9 --------- Run | Scr Mat Mat Min Total 802 | 15 103 566 118 Wait 8 | . . 8 . Move 693 | 9 91 479 114 Hop . | . . . . Pick Up 10 | 1 2 7 . Fast Attach 8 | . . 8 . Attach 11 | 1 . 8 2 Detach 1 | 1 . . . Swap . | . . . . Drop 5 | 3 2 . . Fire 66 | . 8 56 2 Melee . | . . . . Ram . | . . . . Kick . | . . . . Crush . | . . . . Escape Stasis . | . . . . Rewire . | . . . . Trap . | . . . . Miscellaneous . | . . . . Route ------- -11/Scrapyard -10/Materials -9/Materials -9/Mines (discovered 2 exits: [*Mat] / [*Zio]) History --------- Turn | Location | Event 1 | -11/Scrapyard | Discovered new exit (range 3) 16 | -11/Scrapyard | Entered Materials 147 | -10/Materials | Discovered new exit (range 5) 153 | -10/Materials | Entered another Materials area 153 | -9/Materials | Evolved 2 slots: Propulsion x1, Utility x1 307 | -9/Materials | Build established: Mutant 479 | -9/Materials | Core integrity fell below 50% 510 | -9/Materials | Lost 9 parts (2p5n2w) 668 | -9/Materials | System corruption reached 10% 681 | -9/Materials | Core integrity fell below 20% 701 | -9/Materials | Lost 5 parts (1p1n2u1w) 744 | -9/Materials | Discovered new exit (range 12) 871 | -9/Materials | Entered Mines 896 | -9/Mines | Discovered new exit (range 5) 897 | -9/Mines | A Derelict revealed a hidden shortcut to a safe place 957 | -9/Mines | Assembled infested the area 962 | -9/Mines | Assisted by a Guerilla fighting off Assembled 984 | -9/Mines | Destroyed by as-33473 with Assembled Maul Last Messages --------------- 00916_ System corrupted: Matter fused (-10). 00931_ System corrupted: Matter fused (-6). 00957_ ALERT: Infestation in the mines, dispatching Demolisher response squad. 00960_ System corrupted: Substantial component data lost. 00960_ C8-VQX(h): "I'll hold them off! Go on ahead or try to find another way!" 00960_ HV Slug penetrates Wall. 00962_ A derelict emerges from the shadows: "You need to get out of here! I've been tracking a group of Assembled to figure out where they're coming from, and they're closing on this area, come on!" 00967_ C8-VQX(h) system corrupted by crushing effect. 00968_ C8-VQX(h) system terminally corrupted. 00974_ K-01 Serf collects debris. 00976_ as-65666 sneak attacks. 00977_ as-33473 sneak attacks. 00977_ K-01 Serf system corrupted by crushing effect. 00977_ K-01 Serf destroyed. 00978_ System corrupted: Arm. Wheel rejected. 00979_ K-01 Serf collects debris. Map ----- +----------------------------------------------------+ | ??# #??# #??????????????????????????? | | ??# ##??# ##??????????????????????????? | | ??# ##???# ####???????????????????????????? | | ??# ##????## ##?????????????? ???????????????? | | ?## #???????###??????????????? ???????????????? | | ?# #????????????????????????? ???????????????? | | ?# ##????????????????????????? ???????????????? | | ?# ###?????????????????????????? ???????????????? | | ?# #???????????????????????????? ???????????????? | | ?# #???????????????????????????? ???????????????? | | ?# #??####?????????????????????# #??????????????? | | ?# #?## ##????????????????????# #??????????????? | | ?# #?# ##???????????????????# ??????????????? | | ?# ### ##??????????????????# #??????????????? | | ?# > < #??????????????????# #??????????????? | | ?# #??????????????????# #??????????????? | | ?## ### #?????????????###### ###????????????? | | ??# #?# ####?????????????# #????????????? | | ??# #?### ###??????????????# #????????????? | | ??# #???# #??????????????# #### #????????????? | | ??# #???### #??????????????# #??# ##???????????? | | ??# #?????# #####??????????# #??# #???????????? | | ??# #????## ## ##?????????# #??# #??????#####? | | ??? ????## ########### ##### ##????## ## | | ??? ????# """ # ###[! #????# | | ??? ????# """ @aa =; %* #????# | | ??? ????# """ #######;####% a #????? | | ??? ????# ##??????##?## #?????# | | ??? ????##### ####??????????# #????## | | ??? ????????####?????????????# ###### | | ?????????????????????????????## ## ### | | ??????????????????????????????#### ##?? | | ?????????????????????????????????# "#?? | | ?????????????????????????????????# %=###?? | | ?????????????????????????????????# ######???? | | ?????????????????????????????????## ####????????? | | ??????????????????????????????????####???????????? | | ?????????????????????????????????????????????????? | | ?????????????????????????????????????????????????? | | ?????????????????????????????????????????????????? | | | | | | | | | | | | | | | | | | | | | +----------------------------------------------------+ Best States ------------- Heat Dissipation 28 Energy Generation 10 Energy Capacity 250 Matter Stores 300 Matter Capacity 300 Sight Range 18 Terrain Scan Density 10 Evasion (%) 53 Armor Integrity Analysis 33 Recoil Reduction 1 Salvage Targeting 1 Item Schematics ----------------- None Robot Schematics ------------------ None Fabricated ------------ Nothing Alien Tech Used ----------------- None Achievements -------------- None Challenges ------------ None Game ------ Seed LightSuspensionRecalibrator Manual? 0 Play Time 00:19:28 Cumulative 20.2 hours Start 2021.03.08 @ 20:07:07 End 2021.04.01 @ 20:17:24 Sessions 2 Manual Loads 0 Difficulty Rogue Special Mode None Game No. 16 Rogue 15 Adventurer 1 Explorer 0 Win Type - Total 0 Types 0/0/0/0/0/0/0/0/0 Lore% 12 Gallery% 20 Achievement% 18 Wizard Run 0 Options --------- ASCII 0 Keyboard 1 Movement Vi Keybinds 0 Fullscreen 1 Font 24/Terminus Map View 76x50 Tactical HUD 1 Map Filters NONE Filters NONE Steam 1 RUN: adbc77c9-80b0-471e-8c90-1ecb2576c2a5